bitfinex/quotes_ETHUSD_20250711
["timestamp","ask_amount","ask_price","bid_price","bid_amount"]
[1752250738613,0.55,2948.5,2947.8,0.4636]
[1752250738821,0.1727,2948.6,2947.8,0.4636]
[1752250738822,0.55,2947.9,2947.8,3.85592024]
[1752250739148,6.139,2947.9,2947.8,0.4636]
[1752250740269,6.138,2947.9,2947.8,4.6499604]
[1752250740472,5.588,2948.1,2948.0,3.39213025]
[1752250740676,13.39063987,2949.3,2948.0,3.39213025]
[1752250740677,0.1727,2949.3,2948.3,0.8014]
[1752250740844,5.588,2949.2,2948.7,3.39124176]
[1752250741172,0.1727,2949.7,2948.7,3.39124176]
[1752250741173,5.588,2949.1,2948.9,3.39107636]
[1752250741379,0.88691209,2950.1,2948.9,0.8014]
[1752250741533,5.7739309,2950.0,2948.9,12.29885846]
[1752250741743,0.1859309,2949.9,2948.9,12.29885846]
[1752250741945,5.7739309,2949.8,2949.2,3.39064604]
[1752250742145,3.39063506,2949.3,2948.3,1.2831]
[1752250742389,0.55,2948.7,2947.9,0.8215]
[1752250742551,0.55,2948.5,2947.7,0.4616]
[1752250743032,0.55,2948.3,2947.9,0.4616]
[1752250743155,0.55,2948.3,2947.8,0.0359236]
[1752250743500,0.55,2948.3,2948.0,0.4616]
[1752250743660,1.1637,2948.3,2947.8,0.002]
[1752250743987,0.55,2948.1,2947.8,0.002]
[1752250744288,0.55,2947.9,2947.8,0.002]
[1752250744995,6.137,2947.9,2947.8,0.002]
[1752250745199,0.1727,2948.7,2947.8,0.4636]
[1752250745347,5.587,2948.6,2947.9,0.7633]
[1752250745657,13.3909997,2949.0,2947.9,0.7633]
[1752250745658,0.55,2948.4,2948.0,0.4616]
[1752250745874,0.55,2948.2,2948.1,0.4616]
[1752250746176,6.137,2948.2,2948.1,0.4616]
[1752250746550,6.137,2948.2,2947.9,0.7633]
[1752250746747,6.137,2948.2,2948.0,0.1696]
[1752250747094,6.137,2948.2,2948.0,0.6312]
[1752250747748,6.7507,2948.2,2948.0,0.1696]
[1752250747947,0.1696,2948.1,2947.8,0.002]
[1752250748178,0.55,2948.0,2947.8,0.002]
[1752250748382,6.136,2947.9,2947.8,0.002]
[1752250748798,6.136,2947.9,2947.8,0.4747]
[1752250749217,6.136,2947.9,2947.8,0.002]
[1752250749871,6.76656,2947.9,2947.8,0.002]
[1752250750181,6.93616,2947.9,2947.8,0.002]
[1752250750684,6.3056,2947.9,2947.8,0.002]
[1752250751370,0.7196,2947.9,2947.8,0.002]
[1752250751583,6.3056,2947.9,2947.8,0.002]
[1752250752577,6.4783,2947.9,2947.8,0.002]
[1752250755820,8.3097,2948.6,2947.8,0.002]
[1752250756132,10.0,2948.4,2947.8,0.4747]
[1752250756621,0.55,2948.3,2947.8,0.4747]
[1752250756816,1.8137,2948.5,2948.0,3.39212405]
[1752250757016,8.3097,2948.6,2948.1,0.4727]
[1752250757017,5.583,2948.4,2948.1,0.4727]
[1752250757512,5.583,2948.4,2947.8,0.002]
[1752250757513,0.55,2948.1,2947.8,0.002]
[1752250757716,13.94224532,2947.9,2947.8,0.002]
[1752250758020,19.69794532,2947.9,2947.8,0.002]
[1752250758239,20.04145934,2947.9,2947.8,0.002]
[1752250758443,14.45845934,2947.9,2947.8,0.002]
[1752250758611,21.86043853,2947.9,2947.8,0.002]
[1752250759443,0.55,2947.5,2946.6,0.002]
[1752250759643,10.55,2947.1,2946.6,0.002]
[1752250759827,0.55,2946.9,2946.6,0.002]
[1752250760001,0.55,2946.7,2946.6,0.002]
[1752250761099,0.16607712,2948.0,2946.6,0.002]
[1752250761100,0.1727,2947.8,2946.8,0.7501]
[1752250761308,0.55,2947.5,2946.8,0.7501]
[1752250761505,0.55,2947.3,2946.8,1.2228]
[1752250761808,0.55,2947.1,2946.9,3.86603966]
[1752250762129,0.55,2946.9,2946.8,0.7501]
[1752250762344,0.1727,2947.8,2946.8,1.164683]
[1752250762521,8.137,2948.6,2946.8,1.164683]
[1752250762522,5.582,2947.7,2947.4,3.3928163]
[1752250762726,8.137,2948.6,2946.8,0.7501]
[1752250762727,11.52846093,2948.6,2947.6,0.7501]
[1752250762941,5.582,2948.5,2947.6,0.7501]
[1752250763132,1.3719,2948.4,2947.6,0.7501]
[1752250763330,0.55,2948.3,2947.6,0.7501]
[1752250763529,1.3719,2948.4,2947.6,0.7501]
[1752250763530,5.581,2948.2,2947.6,0.7501]
[1752250764107,1.3719,2948.4,2947.7,0.4727]
[1752250764308,5.581,2948.3,2947.7,0.4727]
[1752250764609,0.55,2948.1,2947.6,0.7501]
[1752250764814,0.55,2947.9,2947.6,0.7501]
[1752250765035,0.55,2947.9,2947.3,0.4727]
[1752250765239,10.55,2947.9,2947.2,0.7501]
[1752250765544,0.55,2947.7,2947.2,0.7501]
[1752250765742,0.55,2947.5,2947.2,1.2228]
[1752250765943,0.55,2947.5,2947.1,0.1696]
[1752250766722,0.55,2947.5,2947.2,0.4727]
[1752250766921,5.58,2947.4,2947.3,0.4727]
[1752250768229,0.55,2947.3,2947.1,0.1696]
[1752250768426,0.55,2947.3,2947.1,0.6423]
[1752250768715,0.55,2947.3,2947.1,0.1696]
[1752250769746,1.163,2947.3,2947.1,0.1696]
[1752250769947,1.163,2947.3,2946.9,0.002]
[1752250770148,0.55,2947.0,2946.9,0.002]
[1752250770315,6.129,2947.0,2946.9,0.002]
[1752250770745,16.129,2947.0,2946.9,0.002]
[1752250770945,21.01569684,2947.0,2946.9,0.002]
[1752250771148,21.10989684,2947.0,2946.9,0.002]
[1752250771667,21.10989684,2947.0,2946.9,1e-08]
[1752250771668,59.42259684,2947.0,2946.9,1e-08]
[1752250771827,0.7227,2945.7,2945.2,0.1696]
[1752250772163,0.7227,2945.7,2944.9,0.002]
[1752250772164,10.55,2945.5,2944.9,0.002]
[1752250772369,10.7196,2945.5,2945.0,0.1696]
[1752250772514,10.55,2945.5,2945.0,0.1696]
[1752250772715,5.578,2945.4,2944.9,0.002]
[1752250772910,0.55,2945.0,2944.9,0.002]
[1752250773154,6.128,2945.0,2944.9,0.4747]
[1752250773356,6.128,2945.0,2944.9,0.002]
[1752250774692,6.128,2945.0,2944.9,0.4747]
[1752250775251,6.128,2945.0,2944.9,0.002]
[1752250775682,6.9104,2945.0,2944.9,0.002]
[1752250775857,6.2976,2945.0,2944.9,0.002]
[1752250777786,10.0,2945.7,2945.2,3.39532867]
[1752250777960,0.1696,2945.5,2945.2,0.4727]
[1752250778362,0.1696,2945.5,2945.3,1.2372]
[1752250778549,6.128,2945.4,2945.3,4.63243987]
[1752250778884,5.578,2945.4,2945.3,1.2372]
[1752250779249,6.15276,2945.4,2944.9,0.002]
[1752250779450,0.1696,2945.0,2944.9,0.002]
[1752250779650,6.4693,2945.0,2944.9,0.002]
[1752250779893,19.86488573,2945.0,2944.9,0.002]
[1752250780065,19.95908573,2945.0,2944.9,0.002]
[1752250780391,21.45151573,2945.0,2944.9,0.002]
[1752250780979,21.45151573,2945.0,2944.6,0.002]
[1752250780980,3.94593167,2944.7,2944.6,0.002]
[1752250781172,19.69563167,2944.7,2944.6,0.002]
[1752250781375,19.78983167,2944.7,2944.6,0.002]
[1752250783058,19.69563167,2944.7,2944.6,0.002]
[1752250783268,21.28324721,2944.7,2944.6,0.002]
[1752250784099,15.70624721,2944.7,2944.6,0.002]
[1752250784423,21.18904721,2944.7,2944.6,0.002]
[1752250784624,21.28324721,2944.7,2944.6,0.002]
[1752250784773,21.28324721,2944.7,2944.6,1e-08]
[1752250785174,14.115647,2944.6,2944.5,1e-08]
[1752250785414,45.20824848,2944.6,2944.5,1e-08]
[1752250785615,44.11897767,2944.4,2944.3,1e-08]
[1752250785817,3.3969699,2943.8,2942.6,0.4457]
[1752250786141,3.39835848,2942.6,2941.8,0.9322]
[1752250786425,10.1696,2943.7,2941.8,0.9322]
[1752250786426,6.127,2942.5,2942.0,0.4457]
[1752250786629,6.127,2942.5,2941.8,0.7626]
[1752250786630,0.55,2942.5,2941.8,0.7626]
[1752250786775,0.55,2942.5,2942.4,0.7676]
[1752250786776,6.127,2942.5,2942.4,0.7676]
[1752250787181,6.2966,2942.5,2942.4,1.2133]
[1752250787481,6.127,2942.5,2942.4,0.005]
[1752250787819,0.55,2942.5,2942.4,0.4507]
[1752250788021,8.146,2943.3,2942.6,3.39831013]
[1752250788252,5.576,2943.2,2942.6,0.4457]
[1752250788753,0.55,2943.1,2942.6,0.4457]
[1752250789041,0.55,2942.9,2942.7,0.4457]
[1752250789249,0.55,2943.2,2942.8,0.4457]
[1752250789450,0.55,2943.0,2942.9,0.4457]
[1752250790350,0.55,2943.0,2942.4,0.7563]
[1752250790351,11.1627,2943.0,2942.4,0.7563]
[1752250790553,0.55,2942.5,2942.4,0.005]
[1752250790769,6.127,2942.5,2942.4,0.005]
[1752250790969,0.55,2942.7,2942.4,0.005]
[1752250791128,0.55,2942.7,2942.4,0.4507]
[1752250791129,0.55,2942.5,2942.4,0.4507]
[1752250791323,6.127,2942.5,2942.4,0.005]
[1752250791641,20.13817068,2942.5,2942.4,0.005]
[1752250791834,20.40307068,2942.5,2942.4,0.005]
[1752250793153,20.31087068,2942.5,2942.4,0.005]
[1752250794263,11.3354,2942.5,2942.4,0.005]
[1752250794450,20.31087068,2942.5,2942.4,0.005]
[1752250794650,11.3354,2942.5,2942.4,0.005]
[1752250794963,0.1727,2943.5,2942.6,3.39828119]
[1752250795258,10.0,2943.1,2942.6,0.4457]
[1752250795561,0.1727,2943.9,2942.7,0.4457]
[1752250795766,5.577,2943.2,2942.9,3.39791635]
[1752250795949,0.1727,2943.9,2943.0,0.4457]
[1752250796155,5.577,2943.2,2943.1,0.8124]
[1752250797045,5.577,2943.2,2943.1,1.2581]
[1752250797257,3.39677124,2944.0,2943.1,1.2581]
[1752250797532,6.127,2943.2,2943.1,1.2581]
[1752250797755,6.127,2943.2,2943.1,0.8124]
[1752250798344,0.1696,2943.5,2943.1,4.65578744]
[1752250798543,5.577,2943.2,2943.1,0.8124]
[1752250798793,0.1696,2943.6,2943.1,4.37977785]
[1752250799089,3.3963808,2944.4,2943.1,4.37977785]
[1752250799090,0.57476,2944.6,2943.2,0.4457]
[1752250799391,0.57476,2944.6,2943.8,4.22790213]
[1752250799392,0.1696,2944.3,2943.8,4.22790213]
[1752250799559,0.55,2944.1,2943.9,0.4457]
[1752250799769,0.1696,2944.3,2943.8,1.0006]
[1752250799770,5.576,2944.0,2943.8,1.0006]
[1752250800167,5.576,2944.0,2943.8,4.39750388]
[1752250800364,0.1696,2944.3,2943.9,0.4457]
[1752250800574,6.126,2944.2,2944.0,0.4457]
[1752250800778,6.75556,2944.2,2943.8,0.831]
[1752250800976,6.75556,2944.2,2943.6,0.4457]
[1752250801180,0.55,2943.9,2943.6,0.4457]
[1752250801377,0.57476,2944.6,2943.6,0.4457]
[1752250801378,5.575,2943.8,2943.7,3.3970853]
[1752250801691,6.125,2943.8,2943.7,3.8427853]
[1752250801893,5.575,2943.8,2943.7,3.8427853]
[1752250802392,0.55,2944.6,2944.0,4.16497098]
[1752250802595,8.151,2944.8,2944.1,0.4457]
[1752250802752,5.575,2944.7,2944.1,0.4457]
[1752250802952,5.575,2944.7,2944.6,3.396047]
[1752250803261,5.575,2944.7,2944.6,4.610047]
[1752250803579,5.574,2944.7,2944.6,1.214]
[1752250803956,0.1727,2945.6,2944.2,0.4457]
[1752250803957,10.0,2945.5,2944.2,0.4457]
[1752250804155,8.15,2946.1,2944.4,0.7683]
[1752250804156,0.1727,2946.0,2944.4,0.7683]
[1752250804361,5.574,2945.9,2944.5,0.47966162]
[1752250804589,13.39466464,2945.8,2944.5,3.84184592]
[1752250804775,15.2916972,2945.7,2944.6,0.4457]
[1752250804976,5.574,2945.6,2944.6,0.4457]
[1752250805180,0.55,2945.5,2944.6,0.4457]
[1752250805457,8.15,2946.1,2944.7,17.3452032]
[1752250805659,8.15,2946.1,2944.9,4.21930104]
[1752250805908,5.573,2946.0,2945.9,0.8236]
[1752250806085,5.573,2946.0,2945.9,1.2693]
[1752250806290,5.573,2946.0,2945.9,0.8236]
[1752250806495,8.15,2946.1,2945.9,0.8236]
[1752250806496,8.15,2946.1,2945.9,1.2693]
[1752250806763,5.572,2946.3,2946.2,3.3942027]
[1752250806960,5.572,2946.3,2946.2,3.8399027]
[1752250807160,5.572,2947.2,2946.3,0.7873]
[1752250807412,5.572,2947.2,2947.1,4.18046616]
[1752250807580,3.3914502,2948.6,2947.2,3.39305103]
[1752250807773,5.573,2947.3,2947.2,3.87268154]
[1752250808022,5.573,2947.3,2947.2,0.4457]
[1752250808310,5.573,2947.3,2947.2,3.83875103]
[1752250808478,0.001,2947.3,2947.2,3.83885103]
[1752250808877,0.001,2947.3,2947.2,14.64418465]
[1752250809090,0.0922,2949.3,2947.2,14.64418465]
[1752250809091,3.39100817,2949.0,2947.6,3.39250444]
[1752250809295,10.0,2948.6,2947.7,0.47972475]
[1752250809493,11.54028083,2948.8,2947.7,0.47972475]
[1752250809494,8.149,2948.8,2947.8,0.7983]
[1752250809665,6.72601192,2948.7,2947.9,0.47972245]
[1752250809867,6.72601192,2948.7,2947.0,10.0]
[1752250809868,10.0,2948.6,2947.3,0.7983]
[1752250810084,10.0,2948.6,2946.4,13.0917179]
[1752250810085,10.55,2947.6,2947.1,0.4458]
[1752250810282,0.55,2947.4,2946.9,0.7983]
[1752250810469,0.55,2947.4,2947.2,0.4458]
[1752250810885,11.15401192,2948.7,2947.3,0.4458]
[1752250811081,0.55,2948.2,2947.3,0.4458]
[1752250811418,0.7196,2948.0,2947.5,0.1696]
[1752250811625,0.55,2947.5,2947.0,0.1696]
[1752250811824,0.55,2947.3,2947.0,0.1696]
[1752250812022,0.55,2947.3,2947.1,0.4458]
[1752250812317,0.55,2947.3,2947.0,0.1696]
[1752250812318,0.55,2947.3,2947.2,0.4458]
[1752250812623,5.568,2947.3,2947.2,0.4458]
[1752250812931,10.1737,2948.5,2947.2,0.6154]
[1752250812932,0.1696,2948.1,2947.2,0.6154]
[1752250813083,5.567,2948.0,2947.2,0.4458]
[1752250813311,5.567,2948.0,2947.6,0.1696]
[1752250813516,0.55,2947.9,2947.1,0.4458]
[1752250813822,1.29326,2947.9,2947.4,0.1696]
[1752250814153,4.68557559,2947.9,2947.5,0.4458]
[1752250814859,1.29326,2947.9,2947.5,0.4458]
[1752250815154,1.29326,2947.9,2947.4,0.1696]
[1752250815374,1.15401192,2948.7,2947.7,13.8911179]
[1752250815667,5.567,2948.8,2948.5,0.1688]
[1752250815819,5.566,2948.7,2948.5,0.6146]
[1752250816019,5.566,2948.7,2948.5,0.1688]
[1752250816266,0.1737,2949.6,2948.6,1.2452]
[1752250816443,0.1688,2949.2,2948.6,1.414]
[1752250816634,10.1737,2950.0,2948.6,1.2452]
[1752250816818,3.55921231,2949.5,2948.9,0.1688]
[1752250817019,5.566,2949.4,2948.9,0.1688]
[1752250817333,5.566,2949.4,2948.9,0.6146]
[1752250817535,5.566,2949.4,2949.0,0.4458]
[1752250817732,5.566,2949.4,2949.1,0.4458]
[1752250818057,8.144,2950.1,2949.3,0.7556]
[1752250818229,0.1737,2949.3,2947.8,0.4458]
[1752250818431,0.55,2948.7,2947.8,0.4458]
[1752250818652,3.94155836,2948.5,2947.8,0.4458]
[1752250818855,0.55,2948.3,2947.8,0.4458]
[1752250819053,0.55,2948.3,2947.9,0.4458]
[1752250819363,0.55,2948.3,2948.0,0.4458]
[1752250819578,0.55,2948.1,2948.0,0.4458]
[1752250819875,6.114,2948.1,2947.7,0.7556]
[1752250820370,6.114,2948.1,2947.7,1.2014]
[1752250820518,5.564,2948.0,2947.8,0.4458]
[1752250820720,5.564,2948.0,2947.9,0.4458]
[1752250821664,5.564,2948.0,2947.7,0.7556]
[1752250821826,5.564,2948.0,2947.8,0.4458]
[1752250822151,5.564,2948.0,2947.9,0.4458]
[1752250822464,0.55,2948.3,2947.9,0.4458]
[1752250822645,3.39058928,2949.4,2948.1,0.7811]
[1752250822848,0.1737,2949.7,2948.1,0.7811]
[1752250822849,5.564,2949.3,2948.2,0.479719]
[1752250823176,10.0,2949.2,2948.2,0.4458]
[1752250823462,0.55,2948.8,2948.1,0.7811]
[1752250823646,0.55,2948.6,2947.7,0.47972475]
[1752250823852,0.55,2948.6,2947.7,1.2269]
[1752250823853,3.39144,2948.6,2947.7,1.2269]
[1752250824058,0.55,2947.9,2947.7,0.7811]
[1752250824260,0.55,2947.7,2946.9,0.7811]
[1752250824558,0.55,2947.4,2946.9,0.7811]
[1752250824769,0.55,2947.2,2946.9,0.7811]
[1752250825361,0.55,2947.2,2946.5,0.7501]
[1752250825590,1.1613,2947.2,2946.5,0.7501]
[1752250825735,0.55,2947.0,2946.5,0.7501]
[1752250825921,0.55,2946.8,2946.5,0.7501]
[1752250826524,3.94359768,2946.8,2946.0,0.7877]
[1752250826724,1.83998921,2946.8,2946.0,0.7877]
[1752250827252,0.55,2946.8,2946.0,4.18206637]
[1752250827459,8.139,2947.1,2946.3,3.39400437]
[1752250827460,0.55,2947.0,2946.3,3.39400437]
[1752250827753,5.563,2946.7,2946.4,0.4458]
[1752250827956,0.55,2946.6,2946.4,0.6154]
[1752250828163,0.55,2946.6,2946.4,0.1696]
[1752250828560,3.56288221,2947.0,2946.5,0.4458]
[1752250828561,0.1696,2947.0,2946.5,0.4458]
[1752250828724,8.139,2947.1,2946.9,3.39339371]
[1752250828925,8.139,2947.1,2947.0,1.2176]
[1752250829163,23.702,2947.1,2946.9,0.1696]
[1752250829366,0.1696,2946.9,2946.4,0.1696]
[1752250829524,0.1696,2946.9,2946.5,0.002]
[1752250829525,0.55,2946.8,2946.5,0.002]
[1752250829750,0.1696,2946.9,2946.5,0.002]
[1752250829751,0.55,2946.6,2946.5,0.002]
[1752250830650,6.113,2946.6,2946.5,0.002]
[1752250830848,8.139,2947.1,2946.8,3.39348066]
[1752250831155,8.139,2947.1,2946.9,0.4458]
[1752250831156,5.564,2947.0,2946.9,0.4458]
[1752250831381,6.114,2947.0,2946.9,0.4458]
[1752250831974,6.114,2947.0,2946.8,0.1696]
[1752250832152,5.564,2947.0,2946.9,0.4458]
[1752250832552,0.55,2947.0,2946.9,0.4458]
[1752250832889,5.564,2947.0,2946.9,0.4458]
[1752250833056,5.564,2947.0,2946.9,4.00879645]
[1752250833785,0.1696,2947.8,2946.9,0.6154]
[1752250833984,5.564,2947.7,2947.4,0.9529]
[1752250834314,5.564,2947.7,2947.5,0.4458]
[1752250834458,0.55,2947.6,2947.5,0.4458]
[1752250834790,0.1696,2947.8,2947.5,0.4458]
[1752250834949,5.564,2947.7,2947.6,0.4458]
[1752250835156,8.3098,2948.2,2947.6,0.4458]
[1752250835463,5.564,2947.8,2947.7,0.6154]
[1752250835684,8.141,2948.2,2947.8,3.3923604]
[1752250835912,5.564,2947.9,2947.8,0.4458]
[1752250836184,5.564,2947.9,2947.8,3.8381604]
[1752250836786,5.564,2947.9,2947.8,16.9638019]
[1752250836950,5.564,2947.9,2947.8,19.77916547]
[1752250837359,0.001,2947.9,2947.8,19.77916547]
[1752250837588,0.001,2947.9,2947.8,29.77916547]
[1752250837797,5.563,2948.3,2948.2,3.39190014]
[1752250838008,5.563,2948.3,2948.2,3.83770014]
[1752250838212,0.001,2949.1,2948.6,0.7967]
[1752250838424,5.563,2949.0,2948.9,3.39108892]
[1752250838713,5.563,2949.0,2948.9,4.03058892]
[1752250838865,5.564,2949.1,2949.0,3.39097999]
[1752250839065,5.564,2949.1,2949.0,0.4707]
[1752250839477,5.564,2949.1,2949.0,3.86167999]
[1752250840084,5.564,2949.1,2948.9,0.1688]
[1752250840291,0.55,2949.0,2948.9,0.1688]
[1752250842194,0.001,2949.1,2948.9,0.6395]
[1752250842370,0.001,2949.1,2948.9,3.55988984]
[1752250842571,0.001,2949.1,2949.0,3.74696897]
[1752250842879,0.001,2949.1,2949.0,1.2867]
[1752250843081,0.001,2949.1,2948.6,0.816]
[1752250843416,0.001,2949.1,2948.7,0.1688]
[1752250843417,0.55,2948.9,2948.7,0.1688]
[1752250844701,0.55,2948.9,2948.7,0.6395]
[1752250845815,0.55,2948.9,2948.1,0.7815]
[1752250846110,1.33,2948.9,2948.4,0.1688]
[1752250846278,4.72110915,2948.9,2948.4,0.1688]
[1752250846605,1.33,2948.9,2948.4,0.1688]
[1752250846806,0.7188,2948.9,2948.4,0.1688]
[1752250846982,0.71684932,2948.9,2948.4,0.1688]
[1752250848072,5.559,2948.8,2948.5,0.4707]
[1752250848271,5.559,2948.8,2948.5,0.6395]
[1752250848536,0.1698,2949.1,2948.5,0.6395]
[1752250848537,0.1698,2949.1,2948.6,0.4707]
[1752250848818,5.559,2949.0,2948.7,0.1688]
[1752250849020,5.559,2948.9,2948.7,3.56011879]
[1752250849195,0.001,2949.1,2948.9,3.39109498]
[1752250849395,5.559,2949.0,2948.9,3.39109498]
[1752250849619,5.559,2949.0,2948.9,0.4707]
[1752250849935,5.559,2949.0,2948.9,0.6395]
[1752250850081,0.001,2949.1,2949.0,3.39097999]
[1752250850280,0.001,2949.1,2949.0,17.80854266]
[1752250850504,0.001,2949.1,2949.0,17.77463287]
[1752250851996,0.001,2949.1,2949.0,27.77463287]
[1752250852221,0.001,2949.1,2949.0,28.57573287]
[1752250853524,0.001,2949.1,2949.0,15.48401497]
[1752250855031,8.138,2950.3,2949.0,12.09303498]
[1752250855032,5.557,2949.7,2949.0,12.09303498]
[1752250855197,0.55,2949.6,2949.4,0.1688]
[1752250855612,0.55,2949.6,2949.1,0.03390865]
[1752250855613,8.138,2950.3,2949.7,0.8181]
[1752250855940,8.138,2950.3,2949.9,13.0917179]
[1752250855941,5.557,2950.2,2949.9,13.0917179]
[1752250856231,5.557,2950.2,2950.0,0.4707]
[1752250856436,6.107,2950.2,2950.1,0.1688]
[1752250856846,0.001,2950.3,2950.2,3.3896007]
[1752250857137,0.001,2950.3,2950.2,3.8603007]
[1752250857456,8.135,2951.4,2950.2,16.60242516]
[1752250857589,0.1688,2951.3,2950.7,11.52410107]
[1752250857786,8.135,2951.4,2951.0,0.1688]
[1752250857787,5.556,2951.2,2951.0,0.1688]
[1752250858093,5.556,2951.2,2951.0,0.6395]
[1752250858325,5.556,2951.2,2951.0,0.1688]
[1752250858636,5.555,2951.2,2951.0,0.1688]
[1752250858840,5.555,2951.2,2951.0,3.3886818]
[1752250859021,5.555,2951.2,2950.9,0.03388796]
[1752250859022,5.555,2951.2,2951.1,0.1688]
[1752250859228,5.555,2951.2,2951.1,3.55736697]
[1752250860098,5.555,2951.2,2951.1,0.94545387]
[1752250860427,5.555,2951.2,2951.1,0.1688]
[1752250860724,5.555,2951.2,2951.1,3.55736697]
[1752250860884,5.555,2951.2,2950.7,0.4707]
[1752250860885,0.55,2950.9,2950.7,0.4707]
[1752250861092,16.104,2950.8,2950.7,0.4707]
[1752250861294,21.12068148,2950.8,2950.7,0.4707]
[1752250861798,1.62777,2950.8,2950.2,3.38954601]
[1752250862125,0.55,2950.5,2950.2,0.1688]
[1752250862326,0.55,2950.6,2949.8,0.4707]
[1752250862626,0.1688,2950.4,2949.9,0.1688]
[1752250862927,0.55,2950.2,2949.9,0.1688]
[1752250863225,5.554,2950.1,2950.0,3.38974365]
[1752250863427,0.1688,2950.9,2950.4,3.38927585]
[1752250863638,0.1688,2950.9,2950.5,0.6395]
[1752250863639,5.553,2950.8,2950.5,0.6395]
[1752250863932,5.553,2950.8,2950.7,0.1688]
[1752250864438,6.103,2950.8,2950.7,0.1688]
[1752250864739,0.55,2950.7,2950.3,0.1688]
[1752250864896,0.55,2950.7,2949.5,21.107]
[1752250864897,3.93954554,2950.3,2949.9,0.1688]
[1752250865090,3.93954554,2950.3,2949.5,0.7652]
[1752250865091,3.94001434,2949.9,2949.5,0.1688]
[1752250865350,0.7188,2949.7,2949.2,0.1688]
[1752250865927,0.1737,2950.0,2948.8,0.7652]
[1752250865928,0.1737,2950.0,2949.3,0.4707]
[1752250866134,3.93998334,2949.9,2949.5,0.1688]
[1752250866305,0.7188,2949.7,2949.2,0.1688]
[1752250866707,0.1737,2950.5,2949.3,0.4707]
[1752250867031,0.1688,2950.3,2949.8,0.1688]
[1752250867234,5.553,2950.2,2949.8,0.1688]
[1752250867473,5.553,2950.2,2949.9,0.4707]
[1752250867756,5.553,2950.2,2949.8,0.9568]
[1752250867757,0.55,2950.1,2949.8,0.9568]
[1752250868112,0.55,2950.1,2949.5,0.4707]
[1752250868318,0.55,2950.1,2949.5,3.89496196]
[1752250868519,0.55,2950.1,2949.9,0.1688]
[1752250868745,0.55,2950.1,2949.9,0.6352]
[1752250870064,3.38895838,2950.8,2949.6,3.39017694]
[1752250870065,5.553,2950.6,2950.1,0.8282]
[1752250870214,5.553,2950.5,2950.2,0.4664]
[1752250870424,5.553,2950.5,2949.8,14.32255487]
[1752250870642,0.55,2950.4,2950.2,0.1688]
[1752250870841,0.55,2950.4,2950.2,0.6352]
[1752250871758,5.553,2950.5,2950.2,3.55832513]
[1752250871966,5.553,2950.5,2950.3,0.4664]
[1752250872174,0.1688,2951.0,2950.4,13.19675487]
[1752250872324,5.552,2950.9,2950.5,4.21740585]
[1752250872529,0.55,2950.8,2950.7,0.1688]
[1752250872783,5.552,2950.9,2950.7,0.1688]
[1752250873072,0.55,2950.8,2950.7,0.1688]
[1752250873366,0.55,2950.6,2950.4,0.1688]
[1752250873614,5.813,2950.9,2950.4,0.1688]
[1752250873615,5.552,2950.5,2950.4,0.1688]
[1752250873737,5.552,2950.5,2950.4,0.4664]
[1752250873930,0.55,2950.8,2950.4,0.6352]
[1752250874263,5.552,2950.7,2950.5,3.88949133]
[1752250874574,0.1688,2951.3,2950.7,3.38892726]
[1752250874735,8.135,2951.4,2950.8,3.38890092]
[1752250875067,8.135,2951.4,2950.6,4.02434119]
[1752250875068,8.135,2951.4,2951.0,0.1688]
[1752250875247,8.135,2951.4,2951.1,0.4664]
[1752250875248,5.551,2951.3,2951.1,0.4664]
[1752250875455,5.551,2951.3,2951.2,0.1688]
[1752250875768,0.001,2951.9,2951.2,4.85181628]
[1752250875769,5.551,2951.5,2951.2,4.85181628]
[1752250875958,5.551,2951.5,2951.2,1.03088452]
[1752250876163,5.551,2951.5,2951.4,0.1688]
[1752250876358,5.551,2951.5,2951.4,0.6352]
[1752250876568,0.001,2951.9,2951.4,0.6352]
[1752250876732,5.552,2951.9,2951.8,0.1688]
[1752250878042,5.552,2951.9,2951.1,13.02795487]
[1752250878043,0.55,2951.8,2950.7,1.2946]
[1752250878264,0.7188,2951.8,2951.3,0.1688]
[1752250878842,4.10665917,2951.8,2951.3,0.1688]
[1752250879181,0.55,2951.7,2951.3,0.1688]
[1752250879683,0.1688,2951.8,2950.8,4.68343972]
[1752250879684,0.55,2951.8,2950.8,4.68343972]
[1752250879902,0.55,2951.8,2951.2,0.1688]
[1752250879903,0.1688,2951.7,2951.2,0.1688]
[1752250880340,0.1688,2951.7,2950.9,0.03388796]
[1752250880341,30.1737,2951.6,2950.3,0.8067]
[1752250880539,0.55,2950.6,2949.6,0.8067]
[1752250880739,0.55,2950.4,2949.6,0.8067]
[1752250881159,0.55,2950.5,2949.6,0.8406029]
[1752250881384,5.549,2950.4,2949.6,1.31033428]
[1752250881585,0.55,2950.1,2949.2,0.7649]
[1752250881740,0.55,2949.9,2949.2,0.7649]
[1752250881934,0.55,2949.9,2949.3,0.50030635]